bitfinex/quotes_ETHUSD_20220308
["timestamp","ask_amount","ask_price","bid_price","bid_amount"]
[1646769535732,12.348,2579.2,2579.1,0.03826957]
[1646769535934,0.468,2579.2,2579.1,0.03826957]
[1646769536233,13.348,2579.2,2579.1,0.03826957]
[1646769536434,12.348,2579.2,2579.1,0.03826957]
[1646769536633,13.348,2579.2,2579.1,0.03826957]
[1646769537280,13.348,2579.2,2578.8,0.03820178]
[1646769537281,5.5,2579.1,2578.4,0.00340342]
[1646769537491,12.35279295,2579.0,2578.4,0.0034006]
[1646769537685,12.82753978,2579.0,2578.4,0.0034006]
[1646769537888,11.88,2578.8,2578.4,0.0034006]
[1646769538085,0.468,2578.7,2578.4,0.0034006]
[1646769538286,0.468,2578.6,2578.4,0.0034006]
[1646769538688,0.87243024,2578.6,2578.4,0.00340032]
[1646769539487,12.75243024,2578.6,2578.4,0.00340032]
[1646769539887,0.87243024,2578.6,2578.4,0.00340059]
[1646769540086,1.87243024,2578.6,2578.4,0.00340059]
[1646769540287,1.17243024,2578.6,2578.4,0.00340059]
[1646769540490,0.87243024,2578.6,2578.4,0.00340059]
[1646769541044,0.87243024,2578.6,2578.4,0.00680159]
[1646769541247,0.87243024,2578.6,2578.4,0.003401]
[1646769541645,0.468,2578.6,2578.4,0.003401]
[1646769542249,0.468,2578.6,2578.4,0.006802]
[1646769542448,0.468,2578.6,2578.4,0.003401]
[1646769543450,0.468,2578.6,2578.4,0.00680196]
[1646769543650,0.468,2578.6,2578.4,0.00340096]
[1646769544690,0.468,2578.6,2578.4,0.00340091]
[1646769544878,0.468,2578.6,2578.5,0.07984959]
[1646769545479,12.348,2578.6,2578.5,0.07984959]
[1646769545882,13.348,2578.6,2578.5,0.07984959]
[1646769547184,1.468,2578.6,2578.5,0.07984959]
[1646769547489,0.1938,2578.7,2578.5,0.07984959]
[1646769547684,0.57678882,2578.8,2578.5,0.07984959]
[1646769548288,0.57678882,2578.8,2578.5,1.04972959]
[1646769548531,0.57678882,2578.8,2578.5,0.07984959]
[1646769549535,0.57678882,2578.8,2578.5,0.82162918]
[1646769549736,0.00479295,2579.0,2578.6,1.5864598]
[1646769549935,0.00479295,2579.0,2578.7,3.8899]
[1646769550135,0.00479295,2579.0,2578.8,1.58637023]
[1646769550737,0.00479295,2579.0,2578.6,0.3899]
[1646769550938,0.00479295,2579.0,2578.7,1.58635756]
[1646769552207,0.00479295,2579.0,2578.5,2.03222918]
[1646769552408,0.00479295,2579.0,2578.6,1.58655965]
[1646769553210,0.00479295,2579.0,2578.6,2.94641965]
[1646769553410,0.00479295,2579.0,2578.7,1.58655965]
[1646769553810,0.00479295,2579.0,2578.7,1.97645965]
[1646769554011,0.00479295,2579.0,2578.9,0.8502408]
[1646769556246,0.00479295,2579.0,2578.9,0.8002408]
[1646769557045,0.00479295,2579.0,2578.8,0.07432694]
[1646769558045,0.00479295,2579.0,2578.9,0.74921183]
[1646769558849,0.58369132,2579.0,2578.9,0.74921183]
[1646769559446,0.58369132,2579.0,2578.8,0.07432694]
[1646769559685,0.58369132,2579.0,2578.9,0.07395444]
[1646769562292,0.57392235,2579.0,2578.9,0.07395444]
[1646769562491,0.468,2579.4,2578.9,0.07395444]
[1646769562692,0.00339962,2579.5,2578.9,0.07395444]
[1646769562693,0.00679923,2579.5,2578.9,0.07395444]
[1646769562893,0.00339961,2579.5,2578.9,0.07395444]
[1646769563292,0.00339961,2579.5,2579.1,0.79843576]
[1646769563933,0.00679938,2579.5,2579.1,0.79843576]
[1646769564137,0.00339977,2579.5,2579.1,0.79843576]
[1646769564336,0.00339977,2579.5,2578.9,1.04372444]
[1646769565036,0.0067996,2579.5,2578.9,1.04502611]
[1646769565238,0.00339983,2579.5,2579.2,0.91111477]
[1646769566238,0.00679968,2579.5,2579.2,0.91111477]
[1646769566439,0.00339985,2579.5,2579.2,0.91111477]
[1646769566640,0.00339985,2579.5,2579.2,0.86111477]
[1646769567484,0.0067997,2579.5,2579.2,0.86111477]
[1646769567688,0.00339985,2579.5,2579.2,6.02067477]
[1646769567886,0.00339985,2579.5,2579.3,1.93915]
[1646769568689,0.0050074,2579.5,2579.3,1.93915]
[1646769568890,0.00160755,2579.5,2579.3,1.93915]
[1646769569090,0.00160755,2579.5,2578.9,2.98427611]
[1646769569292,0.00160755,2579.5,2579.0,1.58619901]
[1646769569691,0.00160755,2579.5,2579.4,0.0763574]
[1646769569895,0.0050113,2579.5,2579.4,0.0763574]
[1646769570090,0.00340375,2579.5,2579.4,0.0763574]
[1646769571158,0.00340373,2579.6,2579.4,0.0763574]
[1646769572360,0.00351712,2579.6,2579.4,0.0763574]
[1646769572963,0.468,2579.5,2579.4,0.0763574]
[1646769574263,0.00343151,2579.6,2579.4,0.0763574]
[1646769574690,0.00686306,2579.6,2579.4,0.0763574]
[1646769574891,0.00343155,2579.6,2579.4,0.0763574]
[1646769575091,0.00343155,2579.6,2579.4,0.03827616]
[1646769575893,0.00673346,2579.6,2579.4,0.03827616]
[1646769576092,0.00330191,2579.6,2579.4,1.00795616]
[1646769577096,0.00667564,2579.6,2579.4,1.00795616]
[1646769577292,0.00337373,2579.6,2579.4,0.03827616]
[1646769577493,0.00337373,2579.6,2579.4,0.03191642]
[1646769578297,0.00674746,2579.6,2579.4,0.03191642]
[1646769578581,0.00337373,2579.6,2579.4,0.03191642]
[1646769579481,0.00676597,2579.6,2579.4,0.03191642]
[1646769579684,0.00339224,2579.6,2579.3,0.039801]
[1646769580083,1.41899219,2580.2,2579.6,2.5]
[1646769580287,1.41899219,2580.6,2579.7,3.5]
[1646769580482,1.41899219,2580.6,2579.8,3.5]
[1646769580684,7.36,2580.7,2579.8,3.5]
[1646769580882,1.41899219,2580.9,2579.8,4.1899]
[1646769581084,0.56707565,2581.1,2580.6,0.96911]
[1646769581283,0.56707565,2581.1,2580.6,1.93824]
[1646769581487,0.56707565,2581.1,2580.6,2.9073401]
[1646769582790,0.56707565,2581.1,2580.6,3.2073401]
[1646769583190,0.00182284,2581.0,2580.6,3.2073401]
[1646769584392,0.00391395,2580.9,2580.6,3.2073401]
[1646769584796,0.00391395,2580.9,2580.6,3.5073401]
[1646769585492,0.00782794,2580.9,2580.6,3.5073401]
[1646769585693,0.00391399,2580.9,2580.6,3.5073401]
[1646769586843,0.00391399,2580.9,2580.7,3.8899]
[1646769586844,0.00366053,2580.9,2580.7,3.8899]
[1646769587142,0.00366053,2580.9,2580.8,3.5]
[1646769587343,0.00366053,2580.9,2580.8,0.3]
[1646769587742,0.00366053,2580.9,2580.7,0.6899]
[1646769587943,0.00366053,2580.9,2580.8,3.5]
[1646769588142,0.00366053,2580.9,2580.8,3.8899]
[1646769588342,0.00366045,2581.0,2580.9,1.93781]
[1646769588543,0.00366045,2581.0,2580.9,2.23781]
[1646769588942,0.00366045,2581.0,2580.9,3.31040502]
[1646769589341,0.00334494,2581.1,2581.0,2.9063356]
[1646769589784,0.00334494,2581.1,2581.0,3.5063356]
[1646769590484,0.56926712,2581.6,2581.0,3.5063356]
[1646769590485,0.00336406,2581.2,2581.1,0.96871]
[1646769590689,0.00336406,2581.2,2581.1,5.3364671]
[1646769590889,0.01345209,2582.0,2581.2,0.3899]
[1646769591088,0.01345209,2582.0,2581.3,9.2012704]
[1646769591289,0.01345209,2582.0,2581.3,10.8012704]
[1646769591689,0.01345233,2582.0,2581.3,10.8012704]
[1646769592088,0.01345233,2582.0,2581.5,0.3899]
[1646769592292,0.01345233,2582.0,2581.6,1.24672038]
[1646769592495,0.01345233,2582.0,2581.6,5.21533238]
[1646769592692,0.01345233,2582.0,2581.9,3.3899]
[1646769592895,0.8160372,2583.0,2581.9,3.3899]
[1646769593093,0.2345,2583.0,2582.1,3.3899]
[1646769593292,0.2345,2583.0,2582.1,3.6899]
[1646769593544,0.2345,2583.0,2582.3,0.68249435]
[1646769593748,0.2345,2583.0,2582.1,1.65832]
[1646769593946,0.0016081,2582.7,2582.3,1.3583332]
[1646769594146,0.0016081,2582.7,2582.4,0.3]
[1646769594846,0.0016081,2582.7,2582.3,0.9684332]
[1646769595050,0.0016081,2582.7,2582.0,1.1534]
[1646769595246,0.0016081,2582.7,2582.0,1.4534]
[1646769595846,0.0016081,2582.7,2582.3,0.83517226]
[1646769596246,0.0016081,2582.7,2582.3,1.13517226]
[1646769596447,0.00371254,2582.5,2582.3,1.13517226]
[1646769596649,0.00371254,2582.5,2582.1,1.5685266]
[1646769596851,0.00371254,2582.5,2582.1,1.2685266]
[1646769597050,0.00371254,2582.5,2582.1,2.2370366]
[1646769597697,0.00388027,2582.4,2582.1,2.99955736]
[1646769598698,0.00388027,2582.4,2582.1,2.03104736]
[1646769598898,0.00776059,2582.4,2582.1,1.2685266]
[1646769599099,0.00388032,2582.4,2581.4,0.03386996]
[1646769599299,0.468,2582.3,2581.5,1.1874]
[1646769599698,12.348,2582.3,2581.4,0.03386996]
[1646769599899,13.31696,2582.3,2582.2,0.03345436]
[1646769600302,14.20942948,2582.3,2582.2,0.03345436]
[1646769600602,13.24046948,2582.3,2582.2,0.03345436]
[1646769600799,0.64232956,2582.3,2582.2,0.03345436]
[1646769601043,0.468,2582.3,2582.2,0.03345436]
[1646769601842,12.348,2582.3,2582.2,0.03345436]
[1646769602443,15.848,2582.3,2582.2,0.03345436]
[1646769603047,12.348,2582.3,2582.2,0.03345436]
[1646769603647,0.468,2582.3,2582.2,0.03345436]
[1646769603850,0.58601469,2582.4,2582.2,0.03345436]
[1646769603851,0.58266752,2582.4,2582.2,0.03345436]
[1646769604049,0.1935,2582.3,2582.2,0.03345436]
[1646769604448,0.00334717,2582.4,2582.2,0.03345436]
[1646769604696,0.00334717,2582.4,2582.3,0.77625494]
[1646769604895,0.00660946,2582.4,2582.3,1.07625494]
[1646769605094,0.00326229,2582.4,2582.3,1.07625494]
[1646769605500,0.00326229,2582.4,2582.3,4.07625494]
[1646769605697,0.00326229,2582.4,2582.3,5.07625494]
[1646769605897,0.00326229,2582.4,2582.3,5.13983346]
[1646769606198,0.00326229,2582.4,2582.3,2.52973346]
[1646769606396,0.00326225,2582.5,2582.3,2.13983346]
[1646769606597,0.00326225,2582.5,2582.3,1.07625494]
[1646769607199,0.00470529,2582.5,2582.3,1.07625494]
[1646769607397,0.00144304,2582.5,2582.4,0.06357852]
[1646769608201,0.00144304,2582.5,2582.4,0.45347852]
[1646769608642,0.00344741,2582.6,2582.4,0.45347852]
[1646769609042,3.4685395,2583.8,2582.8,0.77424248]
[1646769609241,2.94151327,2583.9,2582.8,1.07424248]
[1646769609442,0.3899,2583.7,2582.3,0.44891523]
[1646769609644,4.0834,2583.6,2582.3,0.44891523]
[1646769609847,0.00344737,2582.6,2582.3,0.44891523]
[1646769610043,0.00344737,2582.6,2582.3,0.14891523]
[1646769610244,0.00344737,2582.6,2582.4,0.3]
[1646769610445,0.00344737,2582.6,2582.4,0.65924482]
[1646769610648,0.01378742,2583.0,2582.6,0.0060511]
[1646769611046,0.1935,2583.6,2582.6,0.0060511]
[1646769611446,13.04196,2583.6,2582.6,0.0060511]
[1646769611652,12.348,2583.5,2582.6,0.0060511]
[1646769611846,0.1935,2583.4,2582.6,0.0060511]
[1646769612045,12.348,2583.3,2582.6,0.0060511]
[1646769612288,12.0735,2583.2,2583.0,0.06357852]
[1646769612487,12.0735,2583.2,2582.6,0.0060511]
[1646769612488,12.72083115,2582.7,2582.6,0.0060511]
[1646769612693,13.18883115,2582.7,2582.3,0.03738174]
[1646769612896,11.88,2582.5,2582.3,0.03738174]
[1646769613098,1.48316071,2582.7,2581.4,0.3878]
[1646769613099,17.848,2582.4,2581.4,0.3878]
[1646769613298,18.41222956,2582.4,2581.2,3.83992643]
[1646769613494,18.41222956,2582.4,2581.2,3.70172646]
[1646769613696,18.41222956,2582.4,2580.5,1.172]
[1646769613697,0.3,2582.0,2580.5,1.172]
[1646769613898,12.2699,2581.8,2580.3,1.24]
[1646769614097,12.66636014,2581.4,2580.4,1.58501682]
[1646769614300,12.66636014,2581.4,2579.8,8.172]
[1646769614301,0.3899,2581.1,2579.8,8.172]
[1646769614497,0.3899,2581.1,2579.9,1.58529805]
[1646769614798,0.3899,2581.1,2579.8,7.0]
[1646769614996,0.3899,2581.1,2579.8,4.46928]
[1646769615401,1.6278253,2581.2,2580.1,0.78326131]
[1646769615600,1.2379253,2581.2,2580.3,0.00399352]
[1646769615804,0.1937,2581.1,2580.3,0.00399352]
[1646769616046,1.2379253,2581.2,2580.3,0.97309352]
[1646769616846,1.2379253,2581.2,2580.6,0.85341493]
[1646769617048,1.0879253,2581.2,2580.6,0.8574082]
[1646769617849,1.0879253,2581.2,2580.7,3.5]
[1646769618050,1.0879253,2581.2,2580.9,3.0]
[1646769618356,1.0879253,2581.2,2581.1,0.3899]
[1646769618754,1.0879253,2581.2,2581.1,0.6899]
[1646769619152,1.0879253,2581.2,2581.1,0.3]
[1646769619451,0.61896265,2581.2,2581.0,1.43467064]
[1646769619697,0.61896265,2581.2,2581.1,3.3899]
[1646769619698,1.0879253,2581.2,2581.1,3.3899]
[1646769619888,0.46896265,2581.2,2581.1,0.3899]
[1646769620089,1.0879253,2581.2,2581.1,1.3899]
[1646769620388,1.0879253,2581.2,2581.1,1.58480232]
[1646769620593,1.0879253,2581.2,2581.0,3.31693703]
[1646769620794,1.0879253,2581.2,2581.0,3.31294409]
[1646769621193,1.0879253,2581.2,2581.0,2.31294409]
[1646769621394,1.0879253,2581.2,2581.0,1.34413409]
[1646769621694,1.0879253,2581.2,2581.1,1.58488511]
[1646769621894,1.0879253,2581.2,2581.0,1.04413413]
[1646769622096,1.0879253,2581.2,2581.0,0.74413413]
[1646769622594,1.0879253,2581.2,2581.0,1.71293413]
[1646769622994,1.0879253,2581.2,2581.1,1.97480367]
[1646769623445,1.0879253,2581.2,2581.1,5.77480367]
[1646769623842,1.0879253,2581.2,2581.1,6.77480367]
[1646769624042,1.0879253,2581.2,2581.1,2.88490367]
[1646769624244,1.0879253,2581.2,2581.1,1.88490367]
[1646769624644,1.0879253,2581.2,2581.1,1.98041639]
[1646769624843,1.0879253,2581.2,2581.1,5.48041639]
[1646769625043,1.0879253,2581.2,2581.1,5.87031639]
[1646769625245,1.0879253,2581.2,2581.1,6.87031639]
[1646769625842,1.0879253,2581.2,2581.1,7.02529939]
[1646769626048,1.0879253,2581.2,2581.1,3.52529939]
[1646769626250,1.0879253,2581.2,2581.1,2.98041639]
[1646769626447,1.0879253,2581.2,2581.1,1.98041639]
[1646769628900,1.0879253,2581.2,2581.1,1.68041639]
[1646769629494,1.0879253,2581.2,2581.1,1.64855467]
[1646769630297,1.0879253,2581.2,2581.1,1.58490367]
[1646769630496,1.0879253,2581.2,2581.0,0.00342052]
[1646769630697,3.6937,2581.7,2581.4,0.60286248]
[1646769631547,15.5737,2581.7,2581.4,0.60286248]
[1646769631745,0.90679915,2581.5,2581.4,0.60286248]
[1646769632145,0.1937,2581.7,2581.4,0.60286248]
[1646769632546,1.05698165,2582.0,2581.4,0.60286248]
[1646769632547,0.1935,2581.8,2581.4,0.60286248]
[1646769632745,0.58898165,2582.0,2581.4,0.90286248]
[1646769632947,3.9483,2582.5,2581.4,0.90286248]
[1646769632948,1.1491,2582.5,2581.4,0.90286248]
[1646769633146,1.1491,2582.5,2581.5,1.58488927]
[1646769633346,3.5,2582.5,2581.5,1.58488927]
[1646769633746,11.88,2582.4,2581.5,1.58488927]
[1646769633948,15.5735,2582.3,2581.8,0.00342122]
[1646769634697,0.1935,2582.3,2581.8,0.00342122]
[1646769634885,0.1935,2582.4,2581.8,0.00342122]
[1646769635084,0.1935,2582.4,2581.5,2.68597647]
[1646769635285,0.1935,2582.5,2581.6,1.58488927]
[1646769637091,13.04241,2582.5,2581.6,1.58488927]
[1646769637291,15.38,2582.4,2581.7,1.58488927]
[1646769637490,0.1935,2582.3,2581.4,0.60286248]
[1646769637691,0.1935,2582.3,2581.5,1.58483771]
[1646769638738,0.1935,2582.4,2581.8,0.00389073]
[1646769638939,0.1935,2582.5,2581.8,0.00389073]
[1646769639338,0.2079664,2582.5,2581.8,0.10296831]
[1646769639741,0.0144664,2582.5,2581.8,0.10296831]
[1646769639940,0.0144664,2582.5,2582.0,0.00389053]
[1646769641147,0.0144664,2582.5,2582.1,0.00389044]
[1646769642199,3.5144664,2582.5,2582.2,0.00368319]
[1646769642388,15.3944664,2582.5,2582.2,0.00368319]
[1646769642589,11.88,2582.3,2582.2,0.00368319]
[1646769642788,15.848,2582.3,2582.2,0.00368319]
[1646769642987,3.968,2582.3,2582.2,0.00368319]
[1646769643187,0.468,2582.3,2582.2,0.00368319]
[1646769643587,0.1935,2582.4,2582.1,0.0033547]
[1646769644088,12.8633364,2582.5,2582.1,0.0033547]
[1646769644488,0.9833364,2582.5,2582.1,0.0033547]
[1646769644790,0.9833364,2582.5,2582.2,0.0607188]
[1646769645087,12.8633364,2582.5,2582.2,0.0607188]
[1646769645691,5.4833364,2582.5,2582.2,0.0607188]
[1646769645935,5.4833364,2582.5,2582.2,0.06411098]
[1646769646345,17.3633364,2582.5,2582.2,0.06411098]
[1646769646740,5.4833364,2582.5,2582.2,0.06411098]
[1646769647141,0.9833364,2582.5,2582.2,0.06415295]
[1646769647445,0.0144664,2582.5,2582.2,0.06415295]
[1646769649444,0.1935,2582.6,2582.4,0.03050051]
[1646769650488,0.58695568,2582.7,2582.4,0.03050051]
[1646769650687,0.58695568,2582.7,2582.4,0.03392752]
[1646769651892,0.58695568,2582.7,2582.4,0.0373545]
[1646769652091,0.58695568,2582.7,2582.4,0.03392749]
[1646769653092,0.58695568,2582.7,2582.4,0.03735507]
[1646769653294,0.58695568,2582.7,2582.4,0.03392809]
[1646769654338,0.58695568,2582.7,2582.4,0.0337527]
[1646769654639,0.57250488,2582.7,2582.6,0.056267]
[1646769655244,0.57250488,2582.7,2582.6,0.05526511]
[1646769657494,15.95250488,2582.7,2582.6,0.05526511]
[1646769657699,4.5,2582.6,2582.5,1e-08]
[1646769657901,5.46884,2582.6,2582.5,0.00344206]
[1646769658100,5.46884,2582.6,2582.5,0.00344205]
[1646769658101,5.60930814,2582.6,2582.5,0.00344205]
[1646769658298,1.10930814,2582.6,2582.5,0.00344205]
[1646769658499,0.96884,2582.6,2582.5,0.00344205]
[1646769659199,0.96884,2582.6,2581.8,1.58455834]
[1646769659601,5.07250488,2582.7,2581.9,0.96873]
[1646769659602,0.57250488,2582.7,2581.9,0.96873]
[1646769659799,1.57250488,2582.7,2581.9,0.96873]
[1646769659998,0.57250488,2582.7,2581.9,0.96873]
[1646769660199,0.57250488,2582.7,2582.0,1.5845332]
[1646769660801,0.96882,2582.6,2582.0,1.5845332]
[1646769661441,0.96882,2582.6,2581.7,0.96871]
[1646769661641,0.96882,2582.6,2582.2,0.00371903]
[1646769662843,0.57250488,2582.7,2582.3,0.00371899]
[1646769663842,0.57250488,2582.7,2582.4,0.00371003]
[1646769665087,4.07250488,2582.7,2582.4,0.00742009]
[1646769665286,4.07250488,2582.7,2582.4,0.00371006]
[1646769665486,0.57250488,2582.7,2582.4,0.00371006]
[1646769665889,4.71876033,2582.8,2582.4,0.00371006]
[1646769665890,0.1935,2582.8,2582.4,0.00371006]
[1646769666091,0.1935,2582.8,2582.4,0.39361006]
[1646769666292,0.1935,2582.8,2582.4,0.69361006]
[1646769666491,0.1935,2582.8,2582.5,2.51041182]
[1646769666691,0.1935,2582.8,2582.5,0.92622772]
[1646769668739,0.1935,2582.8,2582.4,2.24367094]
[1646769668939,0.1935,2582.8,2582.5,1.58411161]
[1646769669339,0.1935,2582.8,2582.6,0.08906683]
[1646769671646,3.6935,2582.8,2582.6,0.08906683]
[1646769672500,0.1935,2582.8,2582.6,0.08906683]
[1646769674702,0.1935,2582.8,2582.7,0.08888976]
[1646769679143,0.1435,2582.8,2582.7,0.1747415]
[1646769698299,14.88,2582.7,2582.4,0.00342869]
[1646769698937,14.88,2582.7,2582.4,0.00342855]
[1646769699138,2.53126219,2582.8,2582.7,0.17138134]
[1646769699338,0.1435,2582.8,2582.7,0.17138134]
[1646769704894,0.1435,2582.8,2582.7,0.12867024]
[1646769709143,12.0235,2582.8,2582.7,0.12867024]
[1646769709344,12.0235,2582.8,2582.7,0.04305174]
[1646769709548,13.3235,2582.8,2582.7,0.04305174]
[1646769709790,0.1435,2582.8,2582.7,0.08232608]
[1646769710995,12.0235,2582.8,2582.7,0.08232608]
[1646769711796,12.0235,2582.8,2582.7,0.04305174]
[1646769711994,17.38,2582.7,2582.4,0.00342832]
[1646769712194,18.64887,2582.7,2582.4,0.00685664]
[1646769712394,0.81847964,2582.5,2582.4,0.00342832]
[1646769712994,12.69847964,2582.5,2582.4,0.00342832]
[1646769713436,13.99847964,2582.5,2582.4,0.00342832]
[1646769713636,13.99847964,2582.5,2582.3,0.00342821]
[1646769713637,14.6408026,2582.5,2582.3,0.00342821]
[1646769714237,11.88,2582.2,2581.6,1.58472053]
[1646769714439,11.88,2581.8,2581.7,1.58472053]
[1646769714636,2.9076429,2581.9,2581.5,1.58472053]
[1646769714837,1.93843,2581.9,2581.6,1.58472053]
[1646769715036,1.93843,2581.9,2581.4,0.60286248]
[1646769715240,13.81843,2581.9,2581.5,1.58500352]
[1646769715439,14.11843,2581.9,2581.5,1.58500352]
[1646769715639,12.84922,2581.8,2581.5,1.58500352]
[1646769715840,13.84922,2581.8,2581.4,0.60286248]
[1646769716843,11.88,2581.6,2581.4,0.60286248]
[1646769717494,12.88,2581.6,2581.4,0.60286248]
[1646769717894,13.84922,2581.6,2581.4,0.60286248]
[1646769718292,1.96922,2581.6,2581.4,0.60686296]
[1646769718691,1.5768739,2581.8,2581.4,0.60686296]
[1646769718892,0.5768739,2581.8,2581.4,0.60686296]
[1646769719092,0.8768739,2581.8,2581.4,0.60686296]
[1646769719290,0.5768739,2581.8,2581.4,0.60686296]
[1646769719491,0.5768739,2581.8,2581.4,0.61053897]
[1646769719691,0.5768739,2581.8,2581.7,0.09916154]
[1646769719692,0.59830023,2581.8,2581.7,0.09916154]
[1646769720497,0.02142633,2581.8,2581.7,0.09916154]
[1646769721941,0.02142633,2581.8,2581.7,1.68395645]
[1646769723342,0.02142633,2581.8,2581.7,0.09916154]
[1646769724346,0.02142633,2581.8,2581.7,1.68404633]
[1646769724546,0.02142633,2581.8,2581.7,2.07394633]
[1646769724991,0.58015798,2582.5,2581.7,2.11802231]
[1646769725191,0.58015798,2582.5,2581.8,1.58488479]
[1646769726595,0.58015798,2582.5,2582.0,0.00342401]
[1646769727395,0.58015798,2582.5,2582.0,0.88274346]
[1646769727597,0.02142633,2582.6,2582.0,0.88274346]
[1646769728098,0.02142633,2582.6,2582.1,0.00343168]
[1646769728743,0.02142633,2582.6,2582.1,1.58804677]
[1646769729144,0.02142633,2582.6,2582.2,0.00343167]
[1646769729545,0.1435,2582.8,2582.2,0.00343167]
[1646769730349,2.08112,2582.8,2582.2,0.00686088]
[1646769730547,0.1435,2582.8,2582.2,0.00342921]
[1646769731647,0.1435,2582.8,2582.2,0.00342803]
[1646769732896,0.1435,2582.8,2582.2,3.89332803]
[1646769733099,1.29297833,2583.3,2582.4,5.8899]
[1646769733100,1.43398168,2583.3,2582.4,5.8899]
[1646769733298,0.01370627,2583.3,2582.6,15.2699]
[1646769733503,1.41945327,2583.6,2582.8,0.3899]
[1646769733697,1.41945327,2583.7,2583.0,0.3899]
[1646769733897,9.7432,2584.7,2583.0,0.3899]
[1646769733898,1.41945327,2583.8,2583.0,0.3899]
[1646769734097,1.896162,2584.0,2583.2,0.3899]
[1646769734098,1.41945327,2584.0,2583.2,0.3899]
[1646769734296,1.896162,2584.3,2583.2,0.3899]
[1646769734297,1.41945327,2584.1,2583.2,0.3899]
[1646769734497,1.41945327,2584.2,2583.2,0.3899]
[1646769734997,4.08342848,2584.6,2583.3,0.3899]
[1646769734998,1.41945327,2584.3,2583.3,0.3899]
[1646769735398,1.41945327,2584.3,2583.8,0.3899]
[1646769735600,1.41945327,2584.4,2583.8,0.3899]
[1646769735797,1.41945327,2584.5,2583.8,0.3899]
[1646769736052,1.41945327,2584.6,2584.1,0.3899]
[1646769736248,3.2079386,2585.0,2584.5,0.90763055]
[1646769736249,1.41945327,2584.7,2584.5,0.90763055]
[1646769736449,1.41945327,2584.7,2584.5,1.29753055]
[1646769736851,1.41945327,2584.8,2584.5,1.29753055]
[1646769737049,1.41945327,2584.8,2584.5,0.3899]
[1646769737249,1.41945327,2584.8,2584.1,0.3899]
[1646769737450,1.42318316,2584.7,2584.1,0.3899]
[1646769737751,1.17318316,2584.8,2584.2,4.3899]
[1646769738150,1.17318316,2584.8,2584.3,0.8979331]
[1646769738352,1.17318316,2584.8,2584.0,0.3899]
[1646769738555,1.17318316,2584.8,2584.1,0.3899]
[1646769739153,0.00125584,2584.9,2584.1,0.3899]
[1646769739353,3.2079386,2585.0,2584.5,0.77246881]
[1646769740595,3.2079386,2585.0,2584.5,1.16236881]
[1646769740796,0.09093632,2585.2,2584.6,3.5]
[1646769741000,0.09093632,2585.2,2584.3,3.5]
[1646769741001,0.09219216,2585.2,2584.3,3.5]
[1646769741203,0.09093632,2585.2,2584.4,12.348]
[1646769741403,0.09093632,2585.2,2584.8,0.3899]
[1646769741901,0.09093632,2585.2,2584.9,1.28099936]
[1646769742102,0.0785646,2585.5,2585.1,5.5]
[1646769742103,7.104e-05,2585.5,2585.1,5.5]
[1646769742302,0.02070344,2585.8,2585.4,3.3899]
[1646769742503,0.0565999,2585.9,2585.6,0.3899]
[1646769742706,0.0209795,2586.0,2585.7,5.5]
[1646769742908,0.0209795,2586.0,2585.8,0.3899]
[1646769743105,0.1334818,2586.8,2585.7,5.5]
[1646769743106,2.36431523,2587.3,2586.1,5.5]
[1646769743306,2.34535437,2588.0,2587.2,3.0]
[1646769743553,3.93551678,2588.3,2586.4,8.4666109]
[1646769743554,0.00125331,2588.2,2587.9,2.70000001]
[1646769743754,0.00125331,2588.2,2588.1,1.99338331]
[1646769743755,0.07126742,2588.2,2588.1,1.99338331]
[1646769743953,0.03760746,2588.7,2588.2,0.07108686]
[1646769744151,0.0159793,2589.4,2588.6,5.5022]
[1646769744353,0.03055608,2589.3,2589.2,5.5]
[1646769744553,0.08148844,2589.9,2589.3,5.5]
[1646769744757,0.08302596,2589.8,2589.4,9.0]
[1646769744953,0.20141758,2590.2,2589.6,5.51272163]
[1646769745156,0.20141758,2590.2,2589.7,0.418]
[1646769745157,0.84963714,2590.1,2589.7,0.418]
[1646769745351,0.23127062,2590.2,2589.8,0.468]
[1646769745553,0.06195816,2590.0,2589.9,0.468]
[1646769745750,0.06195816,2590.0,2589.6,4.05]
[1646769745751,1.0,2589.9,2589.6,4.05]
[1646769745955,1.0,2589.9,2589.7,0.468]
[1646769746157,0.06082131,2589.8,2589.7,0.468]
[1646769746556,0.06082131,2589.8,2589.7,3.968]
[1646769746557,2.131e-05,2589.8,2589.7,3.968]
[1646769746755,2.131e-05,2589.8,2589.7,1.468]
[1646769747199,2.131e-05,2589.8,2589.7,0.468]
[1646769747390,1.306638,2589.8,2589.2,0.468]
[1646769747589,0.07177275,2589.9,2588.7,0.30362077]
[1646769747590,1.30661669,2589.5,2588.7,0.30362077]
[1646769747790,0.5,2589.7,2588.7,0.77162077]
[1646769748088,1.0,2589.2,2588.7,0.77162077]
[1646769748291,1.30784214,2589.6,2589.5,0.68598814]
[1646769748491,0.00402588,2589.6,2589.5,0.68598814]
[1646769748892,0.00402588,2589.6,2589.5,1.15398814]
[1646769749089,0.0741851,2590.0,2589.6,5.5]
[1646769749291,0.0065552,2589.9,2589.7,0.468]
[1646769749890,2.584e-05,2589.7,2589.5,0.68598814]
[1646769750094,2.584e-05,2589.7,2589.6,0.468]
[1646769750693,0.0065552,2589.9,2589.6,0.468]
[1646769750945,1.0,2589.7,2589.5,4.22739167]
[1646769751149,1.30661669,2589.6,2589.5,2.82918145]
[1646769751354,1.30661669,2589.6,2589.0,8.23580205]
[1646769751561,1.30661669,2589.2,2588.6,1.2035]
[1646769751753,4.0,2589.6,2588.6,1.2035]
[1646769751754,1.30661669,2588.9,2588.6,1.2035]
[1646769751951,2.21594305,2589.2,2588.6,1.2035]
[1646769752150,4.0,2589.6,2588.7,3.968]
[1646769752351,0.00122545,2589.5,2588.7,4.218]
[1646769752650,4.0,2589.6,2588.7,0.718]
[1646769752850,1.30661669,2589.5,2588.6,1.2035]
[1646769753249,0.72106033,2589.0,2588.6,1.2035]
[1646769753652,1.30661669,2588.7,2588.2,2.52899287]
[1646769753854,1.60661669,2588.8,2588.2,2.52899287]
[1646769754054,1.60661669,2588.8,2587.3,4.468]
[1646769754055,0.3899,2588.7,2587.3,4.468]
[1646769754251,0.65245931,2588.6,2587.7,0.90716175]
[1646769754452,0.65245931,2588.6,2587.7,1.37516175]
[1646769755293,0.65245931,2588.6,2587.7,4.87516175]
[1646769755491,1.30784214,2588.7,2587.7,5.87516175]
[1646769755793,1.0065552,2589.7,2588.8,0.00322972]
[1646769755794,0.00122545,2589.2,2588.8,0.00322972]
[1646769755995,1.30661669,2588.9,2588.8,0.00322972]